Cogmind - Beta 16.1 @@@ ROGUE MODE // 2026.02.17 @ 00:48:15 Player: TheSkyeDoctor Result: Destroyed by Y-54 Guardian with Flak Gun Performance ------------- Evolutions (3) 1500 Regions Visited (7) 1400 Robots Destroyed (45) 225 Value Destroyed (1235) 1235 Prototype IDs (2) 40 Alien Tech Used (0) 0 Bonus (246) 246 TOTAL SCORE: 4646 Bonus ------- High Alert Combat Kills 2 Follower Combat Kills 315 Friendly Fire -71 Cogmind --------- Core Integrity 0/700 Matter 22/300 Energy 100/100 System Corruption 14% Temperature Cool (0) Movement Core (150) Ox2 Location -7/Factory Parts ------- > --- POWER (1) -------- (None) > --- PROPULSION (5) --- (None) > --- UTILITY (5) ------ Small Storage Unit Targeting Computer Core Analyzer Improved Utility Shielding Hacking Suite > --- WEAPON (2) ------- (None) > --- INVENTORY (8) ---- Armored Wheel Improved Melee Analysis Suite Core Analyzer Particle Charger Faulty Cooled Pulse Rifle Heavy Missile Launcher Peak State ------------ > --- POWER ------------ Enhanced Nuclear Core > --- PROPULSION ------- Airjet Gravmag System Gravmag System Gravmag System > --- UTILITY ---------- Small Storage Unit Targeting Computer Core Analyzer Improved Utility Shielding Hacking Suite > --- WEAPON ----------- Flak Cannon Great Axe > --- INVENTORY -------- Enhanced Nuclear Core Armored Wheel Improved Melee Analysis Suite Core Analyzer Particle Charger Hacking Suite Flak Cannon Heavy Missile Launcher [Rating: 41] Favorites ----------- Power Ion Engine Engine Ion Engine Power Core Enhanced Nuclear Core Propulsion Light Treads Treads Light Treads Wheel Armored Wheel Hover Unit Gravmag System Flight Unit VTOL Module Utility Small Storage Unit Device Seismic Detector Storage Small Storage Unit Processor Targeting Computer Hackware Hacking Suite Protection Improved Utility Shielding Weapon Assault Rifle Energy Gun Medium Laser Energy Cannon Particle Cannon Ballistic Gun Assault Rifle Ballistic Cannon Flak Cannon Launcher Rocket Launcher Special Weapon Mining Laser Slashing Weapon Great Axe Build | -11 -10 -10 -9 -8 -7 -7 -7 ------- Run | Yrd Mat Min Mat Mat Fac Was Fac Slots Evolved 6 | . . . 2 2 2 . . Power . | . . . . . . . . Propulsion 3 | . . . . 2 1 . . Utility 3 | . . . 2 . 1 . . Weapon . | . . . . . . . . Parts Attached 45 | 7 . 1 4 11 20 . 2 Power 6 | 1 . . . 1 4 . . Engine 4 | 1 . . . 1 2 . . Core 2 | . . . . . 2 . . Reactor . | . . . . . . . . Propulsion 15 | 2 . . 1 5 7 . . Treads 5 | 2 . . 1 2 . . . Leg . | . . . . . . . . Wheel 1 | . . . . . 1 . . Hover 6 | . . . . . 6 . . Flight 3 | . . . . 3 . . . Utility 11 | 2 . . 3 2 3 . 1 Device 1 | 1 . . . . . . . Storage 2 | 1 . . 1 . . . . Processor 4 | . . . 2 1 1 . . Hackware 2 | . . . . . 1 . 1 Protection 2 | . . . . 1 1 . . Artifact . | . . . . . . . . Weapon 13 | 2 . 1 . 3 6 . 1 Energy Gun 2 | 1 . . . . 1 . . Energy Cannon 1 | . . . . 1 . . . Ballistic Gun 3 | 1 . . . 1 . . 1 Ballistic Cannon 2 | . . . . . 2 . . Launcher 2 | . . 1 . . 1 . . Special Weapon 1 | . . . . 1 . . . Impact Weapon . | . . . . . . . . Slashing Weapon 2 | . . . . . 2 . . Piercing Weapon . | . . . . . . . . Special Melee Weapon . | . . . . . . . . Unidentified Prototypes 2 | . . . . . 2 . . Parts Lost 26 | . . . . 12 8 . 6 Power 2 | . . . . . 1 . 1 Propulsion 12 | . . . . 6 4 . 2 Utility 4 | . . . . 3 . . 1 Weapon 8 | . . . . 3 3 . 2 Highest Loss Streak 7 | . . . . 7 5 . 4 To Critical Strikes . | . . . . . . . . Average Backups 6 | . 1 6 7 6 6 6 5 Power . | . 1 1 1 1 1 . . Propulsion 1 | . . . 1 2 1 1 1 Utility 2 | . . 3 2 1 2 4 3 Weapon 1 | . . 1 1 . 2 . 1 Tool/Special . | . . . . . . . . Unused Backups 9 | . . . 3 1 1 1 3 Power 1 | . . . . 1 . . . Propulsion 2 | . . . 1 . 1 . . Utility 5 | . . . 2 . . . 3 Weapon 1 | . . . . . . 1 . Tool/Special . | . . . . . . . . Average Slot Usage (%) 85 | . 100 100 99 75 69 67 63 Engine 8 | . 14 14 11 9 2 . . Core 1 | . . . . . 4 2 5 Treads 15 | . 28 28 22 18 . . . Hover 3 | . . . . . 9 15 9 Device 7 | . 14 14 11 2 . . . Storage 12 | . 14 14 21 16 6 7 7 Processor 7 | . . . 10 8 13 15 15 Hackware 2 | . . . . . 6 7 6 Protection 2 | . . . . 1 5 7 7 Energy Gun 1 | . 14 1 . . . . . Ballistic Gun 8 | . 14 14 11 7 3 . 4 Ballistic Cannon 1 | . . . . . 5 . . Launcher 6 | . . 12 11 4 . 2 . Slashing Weapon 1 | . . . . . 3 7 4 Peak Build Rating 41 | 7 7 8 12 16 41 36 36 Average Rating 16 | 4 7 7 11 11 27 30 28 On Entrance 12 | . 7 7 8 12 4 35 27 Avg Prop Armor Cover (%) . | . . . . . . . . Naked Turns . | . . . . . . . . Heaviest Build 26 | 15 15 17 21 23 26 26 23 Greatest Support 80 | 40 40 40 40 80 35 17 17 Greatest Overweight (x) 8 | . . . . 3 8 1 4 Average Overweight (x) . | . . . . . 1 . 1 Largest Inventory Capacity 8 | 8 8 8 8 8 8 8 8 Average Capacity 7 | 7 8 8 8 8 7 8 8 Most Carried 8 | 3 2 8 8 8 8 7 7 Average Carried 6 | 1 1 6 7 6 6 6 5 Final Capacity 8 | 8 8 8 8 8 8 8 8 Final Carried 8 | 1 2 8 8 4 5 7 6 Class Distribution -------------------- 100% | Mutant Dominant Class ---------------- Mutant | -10/Materials Mutant | -10/Mines Mutant | -9/Materials Mutant | -8/Materials Mutant | -7/Factory Mutant | -7/Waste Mutant | -7/Factory Resources | -11 -10 -10 -9 -8 -7 -7 -7 ----------- Run | Yrd Mat Min Mat Mat Fac Was Fac Matter Collected 1136 | 122 157 256 157 208 236 . . Remotely . | . . . . . . . . Salvage Created 971 | 103 . 54 226 283 256 . 49 Parts 71 | 6 . 2 25 17 15 . 6 Haulers Intercepted . | . . . . . . . . Recyclers Shooed . | . . . . . . . . Parts Field Recycled . | . . . . . . . . Retrieved Matter . | . . . . . . . . Parts Self-Destructed . | . . . . . . . . Prevented . | . . . . . . . . Parts Restored . | . . . . . . . . Kills | -11 -10 -10 -9 -8 -7 -7 -7 ------- Run | Yrd Mat Min Mat Mat Fac Was Fac Combat Hostiles Destroyed 30 | . . 3 9 6 10 . 2 Melee 2 | . . . . . 2 . . Guns 5 | . . . 2 2 . . 1 Cannons 8 | . . . . . 8 . . AOE 15 | . . 3 7 4 . . 1 Classes Destroyed 11 | 2 . 1 5 2 1 . . Worker 4 | . . . . 4 . . . Builder 3 | . . . 1 2 . . . Tunneler 3 | 2 . . . . 1 . . Recycler 2 | 1 . 1 . . . . . Operator 2 | . . . 1 . 1 . . Watcher 1 | . . . 1 . . . . Swarmer 13 | . . 3 5 . 3 . 2 Grunt 10 | . . . 3 5 2 . . Sentry 3 | . . . 1 . 2 . . Hunter 1 | . . . . 1 . . . Programmer 3 | . . . . . 3 . . Best Kill Streak 5 | 3 . 3 3 5 3 . 2 Combat Bots Only 3 | . . 3 3 2 3 . 2 Max Kills in Single Turn 3 | 1 . 2 2 3 2 . 1 Gunslinging . | . . . . . . . . Exploded 2 | . . 2 1 2 . . 1 Melee 1 | . . . . . 1 . . Uniques/NPCs Destroyed . | . . . . . . . . Combat | -11 -10 -10 -9 -8 -7 -7 -7 -------- Run | Yrd Mat Min Mat Mat Fac Was Fac Hostile Shots Fired 486 | . 4 4 32 99 182 2 163 Missed 178 | . 1 1 14 33 62 2 65 Hits 308 | . 3 3 18 66 120 . 98 Melee 1 | . . . . 1 . . . Projectile 307 | . 3 3 18 65 120 . 98 Critical Strikes 6 | . . . 1 1 4 . . Damage Taken 3617 | . 30 52 294 1112 1347 . 782 Core 965 | . 10 10 39 204 334 . 368 Absorbed by Shields . | . . . . . . . . Redirected to Shielding 147 | . . . . 55 55 . 37 Core Remaining (%) 86 | 100 . 92 90 62 . . . Volleys Fired 103 | 9 . 2 16 30 38 . 8 Largest 2 | 2 . 2 2 2 2 . 1 Hottest 93 | 70 . 53 53 93 80 . 28 Shots Fired 146 | 18 . 4 27 46 43 . 8 Gun 79 | 18 . 2 16 27 8 . 8 Cannon 45 | . . . . 10 35 . . Launcher 22 | . . 2 11 9 . . . Special . | . . . . . . . . Kinetic 102 | 9 . 2 16 27 40 . 8 Thermal 22 | 9 . . . 10 3 . . Explosive 22 | . . 2 11 9 . . . Electromagnetic . | . . . . . . . . Robot Hit Streak 8 | 7 . 1 6 6 8 . 4 Robot Miss Streak 14 | 2 . 3 8 2 14 . 6 Penetration Max . | . . . . . . . . Secondary Targets . | . . . . . . . . Shots Hit Robots 101 | 12 . 1 13 27 42 . 6 Core Hits 93 | 4 . 4 17 21 43 . 4 Critical Kills . | . . . . . . . . Critical Parts Destroyed . | . . . . . . . . Critical Strikes 1 | . . . . . 1 . . Sever 1 | . . . . . 1 . . Melee Attacks 8 | . . . . . 8 . . Impact . | . . . . . . . . Slashing 8 | . . . . . 8 . . Piercing . | . . . . . . . . Sneak Attacks . | . . . . . . . . Combat Hostiles . | . . . . . . . . Follow-up Attacks . | . . . . . . . . Damage Inflicted 3214 | 150 . 213 689 1006 1009 . 147 Guns 802 | 150 . 12 114 295 90 . 141 Cannons 795 | . . . . 61 734 . . Explosions 1423 | . . 198 575 650 . . . Melee 185 | . . . . . 185 . . Ramming 9 | . . 3 . . . . 6 Kinetic 1422 | 87 . 12 114 295 773 . 141 Thermal 175 | 63 . . . 61 51 . . Explosive 1423 | . . 198 575 650 . . . Electromagnetic . | . . . . . . . . Impact . | . . . . . . . . Slashing 185 | . . . . . 185 . . Piercing . | . . . . . . . . Highest Corruption 14 | . . . . 6 6 14 14 Average Corruption 9 | . . . . 6 4 12 14 Corruption Purged . | . . . . . . . . Corruption Blocked . | . . . . . . . . Effects 26 | . . . . 9 1 4 12 Message Errors 6 | . . . . 3 . 1 2 Matter Fused 6 | . . . . 2 . 1 3 Heat Flow Errors 3 | . . . . . . 1 2 Energy Discharges 4 | . . . . 2 . . 2 Parts Rejected 1 | . . . . . 1 . . Data Loss (minor) 4 | . . . . 2 . . 2 Data Loss (major) 1 | . . . . . . . 1 Misdirections 1 | . . . . . . 1 . Overload Shots . | . . . . . . . . Overflow Damage 18 | . . . 16 . 2 . . Projectiles . | . . . . . . . . Explosions 16 | . . . 16 . . . . Melee 2 | . . . . . 2 . . Knockbacks 8 | . . . . . 8 . . Impact . | . . . . . . . . Kinetic 8 | . . . . . 8 . . Secondary . | . . . . . . . . Self-Inflicted Damage 199 | . . 27 83 86 . . 3 Shots 6 | . . 1 2 3 . . . Rammed 5 | . . . . . 1 . 4 Targets Rammed 6 | . . 1 . . 1 . 4 Kicked . | . . . . . . . . Crushed 1 | . . 1 . . . . . Highest Temperature 290 | 54 . . 21 211 56 185 290 Average Temperature 71 | 23 . . 12 100 11 107 166 Received Heat Transfer 828 | . 18 . 75 315 252 . 168 Effects 3 | . . . . . . . 3 Interference 3 | . . . . . . . 3 Siege Activations . | . . . . . . . . Martial Activations . | . . . . . . . . Shielding Activations . | . . . . . . . . Robots Disrupted . | . . . . . . . . Combat Hostiles . | . . . . . . . . Robots Corrupted . | . . . . . . . . Combat Hostiles . | . . . . . . . . Parts Fried . | . . . . . . . . Impact Corruptions . | . . . . . . . . Robots Melted . | . . . . . . . . Combat Hostiles . | . . . . . . . . Parts Melted . | . . . . . . . . Heat Transferred 396 | 185 . . . 111 100 . . Parts Sabotaged . | . . . . . . . . Parts Stolen . | . . . . . . . . Parts Stripped . | . . . . . . . . Power Chain Reactions . | . . . . . . . . Alert | -11 -10 -10 -9 -8 -7 -7 -7 ------- Run | Yrd Mat Min Mat Mat Fac Was Fac Maximum Alert Level 2 | . . . 2 1 . . . Low Security (%) 89 | 100 100 100 74 30 100 100 100 Level 1 8 | . . . 13 69 . . . Level 2 1 | . . . 11 . . . . Level 3 . | . . . . . . . . Level 4 . | . . . . . . . . Level 5 . | . . . . . . . . High Security . | . . . . . . . . Max Security . | . . . . . . . . Peak Influence 437 | 10 4 121 437 347 100 6 40 Initial 177 | . . . . 177 100 6 . Average 57 | 1 . 14 161 245 22 1 7 Influence Increases 1532 | 15 4 134 669 375 280 . 55 Destroy 0b10 Robot/C 860 | . . 60 400 160 200 . 40 Destroy 0b10 Robot/NC 80 | 15 . 5 20 30 10 . . Destroy Leader 224 | . . 10 104 40 70 . . Allied During Kill 58 | . . 14 37 7 . . . Successful Hack 4 | . 4 . . . . . . Disable Machine 120 | . . 30 15 60 . . 15 Destroy Structure 171 | . . 15 93 63 . . . Lose Combat Pursuer 15 | . . . . 15 . . . Influence Decreases 1532 | 15 4 134 248 574 484 18 55 Entered New Map 378 | . . . . 244 122 12 . Time Decay 940 | 15 4 134 228 190 318 6 45 Lost Part 174 | . . . . 120 44 . 10 Lost Ally 40 | . . . 20 20 . . . Squads Dispatched 8 | . . . 2 2 4 . . Investigation 3 | . . . . 2 1 . . Extermination 2 | . . . . . 2 . . Reinforcement 3 | . . . 2 . 1 . . Assault . | . . . . . . . . Garrison . | . . . . . . . . Intercept . | . . . . . . . . Searches Triggered . | . . . . . . . . Construction Impeded . | . . . . . . . . Haulers Reinforced . | . . . . . . . . Active Scanning Responses . | . . . . . . . . Cargo Convoy Interrupts . | . . . . . . . . Stealth | -11 -10 -10 -9 -8 -7 -7 -7 --------- Run | Yrd Mat Min Mat Mat Fac Was Fac Distress Signals 3 | . . . 1 2 . . . Communications Jammed . | . . . . . . . . Distress Signals . | . . . . . . . . Times Spotted 77 | . 2 3 27 20 14 6 5 Peak Tracking Total 8 | . 2 3 7 8 3 6 4 Tactical Retreats 1 | . . . . 1 . . . Traps | -11 -10 -10 -9 -8 -7 -7 -7 ------- Run | Yrd Mat Min Mat Mat Fac Was Fac Traps Triggered 3 | . . . . . 3 . . Indirectly . | . . . . . . . . Trap Hack Attempts . | . . . . . . . . Triggered . | . . . . . . . . Disarmed . | . . . . . . . . Reprogrammed . | . . . . . . . . Reused . | . . . . . . . . Traps Extracted . | . . . . . . . . Installed . | . . . . . . . . Triggered . | . . . . . . . . Machines | -11 -10 -10 -9 -8 -7 -7 -7 ---------- Run | Yrd Mat Min Mat Mat Fac Was Fac Machines Disabled 8 | . . 2 1 4 . . 1 Max in Single Turn 2 | . . 1 . 2 . . 1 Garrison Access 2 | . . . . . 1 . 1 Machines Repaired . | . . . . . . . . Machines Dismantled . | . . . . . . . . Machines Sabotaged . | . . . . . . . . Overloaded Fab Kills . | . . . . . . . . Hacking | -11 -10 -10 -9 -8 -7 -7 -7 --------- Run | Yrd Mat Min Mat Mat Fac Was Fac Machines Accessed 11 | . 1 1 1 3 4 . 1 Terminals 9 | . 1 1 1 3 3 . . Fabricators . | . . . . . . . . Repair Stations . | . . . . . . . . Recycling Units . | . . . . . . . . Scanalyzers . | . . . . . . . . Garrison Access 2 | . . . . . 1 . 1 Total Hacks 19 | . 2 3 2 6 5 . 1 Successful 4 | . 1 1 . . 1 . 1 Failed 15 | . 1 2 2 6 4 . . Catastrophic 5 | . . . . 3 2 . . Database Lockouts . | . . . . . . . . Manual 10 | . 1 . 2 6 1 . . Terminals 17 | . 2 3 2 6 4 . . Fabricators . | . . . . . . . . Repair Stations . | . . . . . . . . Recycling Units . | . . . . . . . . Scanalyzers . | . . . . . . . . Garrison Access 2 | . . . . . 1 . 1 Terminal Hacks 2 | . 1 1 . . . . . Emergency Access Points 1 | . 1 . . . . . . Zone Layout 1 | . . 1 . . . . . Fabricator Hacks . | . . . . . . . . Repair Station Hacks . | . . . . . . . . Recycling Unit Hacks . | . . . . . . . . Scanalyzer . | . . . . . . . . Garrison Access Hacks 2 | . . . . . 1 . 1 Seal Access 2 | . . . . . 1 . 1 Unauthorized Hacks . | . . . . . . . . Terminals . | . . . . . . . . Fabricators . | . . . . . . . . Repair Stations . | . . . . . . . . Recycling Units . | . . . . . . . . Scanalyzers . | . . . . . . . . Garrison Access . | . . . . . . . . Data Cores Recovered 1 | . . . . . 1 . . Used . | . . . . . . . . Hacking Detections 9 | . 1 1 1 3 3 . . Full Trace Events 2 | . . . . 2 . . . Feedback Events . | . . . . . . . . Feedback Blocked . | . . . . . . . . Robot Schematics Acquired . | . . . . . . . . Robots Built . | . . . . . . . . Authchips . | . . . . . . . . Time . | . . . . . . . . Total Robot Build Rating . | . . . . . . . . Part Schematics Acquired . | . . . . . . . . Parts Built . | . . . . . . . . Authchips . | . . . . . . . . Time . | . . . . . . . . Total Part Build Rating . | . . . . . . . . Part Studies Acquired . | . . . . . . . . Parts Repaired . | . . . . . . . . Time . | . . . . . . . . Parts Recycled . | . . . . . . . . Recycled Matter . | . . . . . . . . Retrieved Matter . | . . . . . . . . Retrieved Components . | . . . . . . . . Parts Scanalyzed . | . . . . . . . . Part Schematics Acquired . | . . . . . . . . Parts Damaged . | . . . . . . . . Bothacking | -11 -10 -10 -9 -8 -7 -7 -7 ------------ Run | Yrd Mat Min Mat Mat Fac Was Fac Used RIF Installer . | . . . . . . . . Robots Hacked . | . . . . . . . . Non-combat . | . . . . . . . . Combat . | . . . . . . . . Robot Hacks Applied . | . . . . . . . . Relay Couplers Released . | . . . . . . . . Fabnet Peak Effective % . | . . . . . . . . Robots Rewired . | . . . . . . . . Allies Hacked . | . . . . . . . . Hacks Repelled . | . . . . . . . . Allies | -11 -10 -10 -9 -8 -7 -7 -7 -------- Run | Yrd Mat Min Mat Mat Fac Was Fac Total Allies 3 | . . 3 . . . . . Largest Group 3 | . . 3 2 1 . . . Highest-Rated Group 69 | . . 69 38 31 . . . Highest-Rated Ally 31 | . . 31 31 31 . . . Total Orders . | . . . . . . . . Ally Attacks 37 | . . 1 25 11 . . . Total Damage 502 | . . . 396 106 . . . Kills 14 | . . . 12 2 . . . Allies Corrupted . | . . . . . . . . Allies Melted . | . . . . . . . . Intel | -11 -10 -10 -9 -8 -7 -7 -7 ------- Run | Yrd Mat Min Mat Mat Fac Was Fac Active Infowar (turns) 2087 | 4 123 1341 501 118 . . . Seismic 2087 | 4 123 1341 501 118 . . . Robot Analysis Total . | . . . . . . . . Derelict Logs Recovered 1 | . . 1 . . . . . Drone Launches . | . . . . . . . . Drone Recoveries . | . . . . . . . . Exploration | -11 -10 -10 -9 -8 -7 -7 -7 ------------- Run | Yrd Mat Min Mat Mat Fac Was Fac Turns Passed 3956 | 116 123 1341 501 398 1121 91 265 Spaces Moved 2706 | 52 77 807 274 239 935 141 181 Core 101 | 9 . . . 5 47 . 40 Treads 1358 | 43 77 807 274 157 . . . Legs . | . . . . . . . . Wheels 272 | . . . . . 272 . . Hover 898 | . . . . . 616 141 141 Flight 77 | . . . . 77 . . . Fastest Speed 30 | 50 160 160 160 30 48 51 111 Average Speed 129 | 140 160 160 160 126 102 62 123 Slowest Speed 450 | 160 160 160 160 200 450 111 250 Overloaded Moves . | . . . . . . . . Propulsion Burnouts . | . . . . . . . . Robots Hopped . | . . . . . . . . Potential Cave-ins . | . . . . . . . . Cave-ins Triggered . | . . . . . . . . Exploration Rate (%) 35 | 3 19 96 27 29 27 77 6 Regions Visited 7 Branch Regions 1 Pre-discovered Areas 1 | . . 1 . . . . . Known Exits Taken . | . . . . . . . . Unknown Exits Taken 5 | 1 1 1 1 1 . . . Scrap Searched 3 | . . 3 . . . . . Spaces Dug 8 | . . . . 8 . . . Terrain Destroyed 174 | . . 16 96 62 . . . Melee . | . . . . . . . . Projectile . | . . . . . . . . AOE 174 | . . 16 96 62 . . . Terrain Rammed . | . . . . . . . . Walls Destroyed . | . . . . . . . . Machines Disabled . | . . . . . . . . Actions | -11 -10 -10 -9 -8 -7 -7 -7 --------- Run | Yrd Mat Min Mat Mat Fac Was Fac Total 3007 | 77 77 852 312 295 1038 144 212 Wait 62 | 2 . 36 7 5 . . 12 Move 2700 | 51 76 806 273 238 935 140 181 Hop . | . . . . . . . . Pick Up 47 | 8 1 6 7 3 19 1 2 Fast Attach 7 | . . . . 2 5 . . Attach 38 | 7 . . 2 8 17 . 4 Detach 8 | . . . . 2 3 2 1 Swap 11 | . . 1 2 3 5 . . Drop 17 | . . . 5 4 7 1 . Fire 103 | 9 . 2 16 30 38 . 8 Melee 8 | . . . . . 8 . . Ram 5 | . . . . . 1 . 4 Kick . | . . . . . . . . Crush 1 | . . 1 . . . . . Escape Stasis . | . . . . . . . . Rewire . | . . . . . . . . Trap . | . . . . . . . . Miscellaneous . | . . . . . . . . Route ------- -11/Scrapyard -10/Materials -10/Mines (discovered 2 exits: *Mat x2) -9/Materials -8/Materials -7/Factory -7/Waste -7/Factory History --------- Turn | Location | Event 7 | -11/Scrapyard | Discovered new exit (range 15) 117 | -11/Scrapyard | Entered Materials 216 | -10/Materials | Discovered new exit (range 13) 240 | -10/Materials | Entered Mines 305 | -10/Mines | Build established: Mutant 343 | -10/Mines | Discovered new exit (range 13) 420 | -10/Mines | Received a Rocket Launcher from a helpful Derelict 576 | -10/Mines | Joined a pair of Derelicts in attacking an 0b10 outpost 662 | -10/Mines | Learned location of Storage (-7) 665 | -10/Mines | Received a Mining Laser from a helpful Derelict 776 | -10/Mines | Discovered new exit (range 9) 1581 | -10/Mines | Entered Materials 1581 | -9/Materials | Accompanied by 2 allies 1581 | -9/Materials | Evolved 2 slots: Utility x2 1586 | -9/Materials | Led the pair of lost Derelicts to an unsafe place 2058 | -9/Materials | Discovered new exit (range 15) 2082 | -9/Materials | Entered another Materials area 2082 | -8/Materials | Accompanied by 1 ally 2082 | -8/Materials | Evolved 2 slots: Propulsion x2 2366 | -8/Materials | Lost 7 parts (3n1u3w) 2465 | -8/Materials | Discovered new exit (range 9) 2480 | -8/Materials | Entered Factory 2480 | -7/Factory | Evolved 2 slots: Propulsion x1, Utility x1 2503 | -7/Factory | Lost 3 parts (3n) 3413 | -7/Factory | Lost 5 parts (4n1w) 3601 | -7/Factory | Sucked down chute 3601 | -7/Factory | Entered Waste 3616 | -7/Waste | EMP discharged 3616 | -7/Waste | System corruption reached 10% 3631 | -7/Waste | Spotted C-40 Crusher 3633 | -7/Waste | Spotted C-40 Crusher 3637 | -7/Waste | Spotted C-40 Crusher 3640 | -7/Waste | Spotted C-40 Crusher 3642 | -7/Waste | Spotted C-40 Crusher 3654 | -7/Waste | Spotted C-40 Crusher 3685 | -7/Waste | Discovered new exit (range 16) 3692 | -7/Waste | Entered Factory 3771 | -7/Factory | Core integrity fell below 50% 3909 | -7/Factory | Core integrity fell below 20% 3913 | -7/Factory | Lost 4 parts (2n2w) 3957 | -7/Factory | Destroyed by Y-54 Guardian with Flak Gun Last Messages --------------- Great Axe destroyed. Gauss Rifle destroyed. System corrupted: Energy discharge (-23). U-05 Engineer builds a Wall. U-05 Engineer lays Concrete. U-05 Engineer builds a Wall. K-01 Serf collects debris. System corrupted: Heat flow error (+284). K-01 Serf collects debris. U-05 Engineer lays Concrete. K-01 Serf collects debris. U-05 Engineer lays Concrete. System corrupted: Substantial component data lost. Acquired Prototype Energy Gun. Slammed into Y-54 Guardian. J JSWU4UEZ6AE,YICLHU62Y5#F4ZCCLVX=W Slammed into Y-54 Guardian. Enh. Nuclear Core destroyed. Slammed into Y-54 Guardian. Map ----- +----------------------------------------------------+ | ?????????????????# """" """" """" # #?????????? | | ?????????????????# """" """" """" # #?????????? | | ?????????????????# """" """" """" # ########### | | ?????????????????# """" """" """" # + # | | ?????????????????# """" """" """" # # # | | ?????????????????# """" """" """" + # # | | ?????????????????# """" """" """" # # # | | ?????????????????# # # # | | ?????????????????#########+####### # # | | ??????????############## ^ # | | ??????????# # ^ # | | ??????????# """ """ # ^" " """ # | | ??????????# ! """ """ + "G" " [ ## | | ??????????# """ """ # " " %% #? | | ??????????? # * [ #? | | ????????????############ #? | | ??????????? ### #### ## #? | | ??????????? ######### # #? | | ??????????? ##?????? # ## #? | | ??????????? ##+############# #? | | ???????????? # ! #?# #? | | ????????????############ # #?# #? | | ?????????????? # # """ """ #? ? | | ?????????????""" """ # # """ """ #? | | ???????????? """ """ # # """ """ # | | ??????????# """ """ # @Y # ! + | | ??????????# + + """ """ # | | | ??????????# """ """ # # """ """ # | | ???????????? """ """ # # """ """ # | | ?????????????""" """ # # ######## | | ?????????????? # # #??????? | | ?????????????? # # ???????? | | ????????????? # ############????????? | | ???????????? # #???????????????????? | | ????????????############ #???????????????????? | | ???????????????????????# #???????????????????? | | ???????????????????????# ##########??????????? | | ???????????????????????# #??????????? | | ???????????????????????# #??????????? | | ???????????????????????# #??????????? | | ???????????????????????# #??????????? | | ???????????????????????# #??????????? | | ?????????????????????######+###########??????????? | | ?????????????????????# #??????????????? | | ?????????????????????# #??????????????? | | ?????????????????????# """""" #??????????????? | | ?????????????????????# """""" #??????????????? | | ?????????????????????# """""" #??????????????? | | ?????????????????????# """""" #??????????????? | | ?????????????????????# #??????????????? | +----------------------------------------------------+ Best States ------------- Heat Dissipation 34 Energy Generation 17 Energy Capacity 300 Matter Stores 500 Matter Capacity 500 Sight Range 16 Terrain Scan Density 10 Propulsion Shielding 33 Utility Shielding 66 Evasion (%) 64 Targeting Accuracy 6 Core Analysis 6 Recoil Reduction 4 Offensive Hacking 10 Item Schematics ----------------- None Robot Schematics ------------------ None Fabricated ------------ Nothing Repaired ---------- Nothing Studied --------- None Alien Tech Used ----------------- None Achievements -------------- None Challenges ------------ None Game ------ Seed ShrapnelChargeLauncher Manual? 0 Play Time 00:30:31 Cumulative 28.3 hours Start 2026.02.17 @ 00:19:50 End 2026.02.17 @ 00:48:15 Sessions 1 Manual Loads 0 Difficulty Rogue Special Mode None Game No. 67 Rogue 67 Adventurer 0 Explorer 0 Win Type - Total 0 Types 0/0/0/0/0/0/0/0/0/0 Lore% 24 Gallery% 29 Achievement% 22 Wizard Run 0 Options --------- Layout 1 ASCII 0 Keyboard 0 Movement Mouse Keybinds 0 Fullscreen 1 Font 24/Smallcaps Map View 50x35 Zoom Use 0% Tactical HUD 0 Map Filters NONE Filters NONE Steam 1 RUN: 18b7b112-3711-4e17-904e-97054a162688